[Event "*** Titled Tuesday Blitz"]
[Site "Chess.com"]
[Date "2020.11.10"]
[Round "6"]
[White "Flutaga"]
[Black "Michaelson_11"]
[Result "1-0"]
[WhiteElo "1987"]
[BlackElo "2099"]
[TimeControl "180+1"]
[EndTime "11:09:09 PST"]
[Termination "Flutaga won by resignation"]

1. e4 {[%clk 0:03:00.6]} 1... c5 {[%clk 0:02:57.4]} 2. Nc3 {[%clk 0:02:59.6]}
2... Nc6 {[%clk 0:02:58.3]} 3. f4 {[%clk 0:02:59.5]} 3... g6 {[%clk 0:02:55.7]}
4. Nf3 {[%clk 0:02:59.9]} 4... Bg7 {[%clk 0:02:55.3]} 5. Bb5 {[%clk 0:03:00.1]}
5... Nd4 {[%clk 0:02:53.2]} 6. a4 {[%clk 0:02:59.3]} 6... a6 {[%clk 0:02:50.1]}
7. Bc4 {[%clk 0:02:58]} 7... e6 {[%clk 0:02:47.1]} 8. e5 {[%clk 0:02:56.2]} 8...
d5 {[%clk 0:02:47.2]} 9. exd6 {[%clk 0:02:55.6]} 9... Qxd6 {[%clk 0:02:47.4]}
10. d3 {[%clk 0:02:55.3]} 10... Ne7 {[%clk 0:02:45.8]} 11. Ne4 {[%clk
0:02:53.2]} 11... Qc7 {[%clk 0:02:44.9]} 12. c3 {[%clk 0:02:49.6]} 12... Nxf3+
{[%clk 0:02:41.9]} 13. Qxf3 {[%clk 0:02:50.5]} 13... O-O {[%clk 0:02:41.6]} 14.
a5 {[%clk 0:02:45.5]} 14... Bd7 {[%clk 0:02:30.2]} 15. O-O {[%clk 0:02:43.3]}
15... Bc6 {[%clk 0:02:28]} 16. Qf2 {[%clk 0:02:43.4]} 16... Bxe4 {[%clk
0:02:17.9]} 17. dxe4 {[%clk 0:02:44.3]} 17... Qc6 {[%clk 0:02:18.3]} 18. Bd3
{[%clk 0:02:41.1]} 18... c4 {[%clk 0:02:17.6]} 19. Bc2 {[%clk 0:02:41]} 19... f5
{[%clk 0:02:10.6]} 20. exf5 {[%clk 0:02:28.1]} 20... Nxf5 {[%clk 0:02:01]} 21.
Re1 {[%clk 0:02:16.8]} 21... Rad8 {[%clk 0:01:48.7]} 22. Qe2 {[%clk 0:02:14.4]}
22... Rd6 {[%clk 0:01:28.6]} 23. Be3 {[%clk 0:02:06.5]} 23... Rfd8 {[%clk
0:01:05.8]} 24. Rad1 {[%clk 0:02:02]} 24... Rxd1 {[%clk 0:00:55]} 25. Rxd1
{[%clk 0:02:00.4]} 25... Rxd1+ {[%clk 0:00:51]} 26. Bxd1 {[%clk 0:01:51.8]}
26... Qe4 {[%clk 0:00:48.5]} 27. Bb6 {[%clk 0:01:41]} 27... Qxe2 {[%clk
0:00:24.9]} 28. Bxe2 {[%clk 0:01:41.9]} 28... Nd6 {[%clk 0:00:18.5]} 29. Bf3
{[%clk 0:01:21.6]} 29... Kf7 {[%clk 0:00:06.3]} 30. Bc5 {[%clk 0:01:10.5]} 30...
Nc8 {[%clk 0:00:02.3]} 31. Bxb7 {[%clk 0:01:09.3]} 31... Ne7 {[%clk 0:00:03.2]}
32. Bxa6 {[%clk 0:01:08.5]} 32... Nd5 {[%clk 0:00:03.1]} 33. Bxc4 {[%clk
0:01:07]} 33... Nxf4 {[%clk 0:00:04]} 34. Ba6 {[%clk 0:01:03]} 34... e5 {[%clk
0:00:02.6]} 35. Bc4+ {[%clk 0:01:02.7]} 35... Ke8 {[%clk 0:00:02.3]} 36. a6
{[%clk 0:01:02.7]} 36... e4 {[%clk 0:00:01.8]} 37. a7 {[%clk 0:01:02.6]} 1-0

[Event "*** Titled Tuesday Blitz"]
[Site "Chess.com"]
[Date "2020.11.10"]
[Round "6"]
[White "AungTZ"]
[Black "Kavyev_Ruslan"]
[Result "0-1"]
[WhiteElo "2119"]
[BlackElo "2403"]
[TimeControl "180+1"]
[EndTime "11:09:10 PST"]
[Termination "Kavyev_Ruslan won by resignation"]

1. e4 {[%clk 0:02:14.9]} 1... c5 {[%clk 0:02:58.5]} 2. Nf3 {[%clk 0:02:14.1]}
2... d6 {[%clk 0:02:56.2]} 3. Bb5+ {[%clk 0:02:12.8]} 3... Nd7 {[%clk
0:02:56.2]} 4. O-O {[%clk 0:02:12.6]} 4... Nf6 {[%clk 0:02:56.2]} 5. Re1 {[%clk
0:02:12.2]} 5... a6 {[%clk 0:02:56.6]} 6. Bf1 {[%clk 0:02:10.6]} 6... e6 {[%clk
0:02:52.7]} 7. c3 {[%clk 0:02:08.3]} 7... b5 {[%clk 0:02:51.6]} 8. d3 {[%clk
0:02:07.8]} 8... Bb7 {[%clk 0:02:51.3]} 9. a4 {[%clk 0:02:06.5]} 9... Be7 {[%clk
0:02:51.1]} 10. axb5 {[%clk 0:02:05.1]} 10... axb5 {[%clk 0:02:52]} 11. Na3
{[%clk 0:02:05.1]} 11... Qb6 {[%clk 0:02:49.3]} 12. Bd2 {[%clk 0:02:05]} 12...
O-O {[%clk 0:02:49.1]} 13. h3 {[%clk 0:02:02.8]} 13... Rfd8 {[%clk 0:02:47]} 14.
Nc2 {[%clk 0:02:01.5]} 14... Rxa1 {[%clk 0:02:44.9]} 15. Qxa1 {[%clk 0:02:01]}
15... Ra8 {[%clk 0:02:45.8]} 16. Qb1 {[%clk 0:02:01]} 16... Qa7 {[%clk 0:02:38]}
17. Ne3 {[%clk 0:01:55]} 17... Qa2 {[%clk 0:02:37.6]} 18. Qc1 {[%clk 0:01:51.6]}
18... Qb3 {[%clk 0:02:36.9]} 19. Nh2 {[%clk 0:01:34.6]} 19... Ra2 {[%clk
0:02:36.3]} 20. Nd1 {[%clk 0:01:34]} 20... Nb6 {[%clk 0:02:33.4]} 21. Bg5 {[%clk
0:01:22.2]} 21... Na4 {[%clk 0:02:33]} 22. Re2 {[%clk 0:01:16.6]} 22... h6
{[%clk 0:02:32.9]} 23. Bxf6 {[%clk 0:01:15.3]} 23... Bxf6 {[%clk 0:02:33.8]} 24.
Ng4 {[%clk 0:01:14.2]} 24... Be7 {[%clk 0:02:31.8]} 25. d4 {[%clk 0:01:11.2]}
25... Nb6 {[%clk 0:02:12.5]} 26. Re3 {[%clk 0:01:06.7]} 26... Qa4 {[%clk
0:02:05.7]} 27. Rg3 {[%clk 0:00:59.3]} 27... Ra1 {[%clk 0:02:05.4]} 28. Nxh6+
{[%clk 0:00:56.7]} 28... Kf8 {[%clk 0:02:05.6]} 29. Qf4 {[%clk 0:00:54.5]} 29...
gxh6 {[%clk 0:02:03.9]} 30. Qxh6+ {[%clk 0:00:54.4]} 30... Ke8 {[%clk
0:02:04.4]} 31. Qh8+ {[%clk 0:00:48.6]} 31... Kd7 {[%clk 0:02:04.8]} 32. Qb8
{[%clk 0:00:47.8]} 32... Qa8 {[%clk 0:02:00.7]} 33. Qxa8 {[%clk 0:00:47]} 33...
Bxa8 {[%clk 0:01:58.6]} 34. Be2 {[%clk 0:00:47.9]} 34... Bxe4 {[%clk 0:01:55.5]}
35. Kh2 {[%clk 0:00:47.2]} 35... c4 {[%clk 0:01:41.3]} 36. Rg7 {[%clk
0:00:45.4]} 36... Ke8 {[%clk 0:01:39]} 37. Bh5 {[%clk 0:00:43.9]} 37... Bg6
{[%clk 0:01:35.6]} 38. Bxg6 {[%clk 0:00:42.9]} 38... fxg6 {[%clk 0:01:36.5]} 39.
Ne3 {[%clk 0:00:43.2]} 39... g5 {[%clk 0:01:34.7]} 40. Ng4 {[%clk 0:00:40.5]}
40... Rb1 {[%clk 0:01:33]} 41. Nh6 {[%clk 0:00:39.6]} 41... Rxb2 {[%clk
0:01:32.9]} 42. Rg8+ {[%clk 0:00:40.5]} 42... Kd7 {[%clk 0:01:32.8]} 43. Rb8
{[%clk 0:00:40.3]} 43... Kc7 {[%clk 0:01:32.3]} 44. Re8 {[%clk 0:00:40.2]} 44...
Kd7 {[%clk 0:01:30.7]} 45. Rb8 {[%clk 0:00:39.2]} 45... Nd5 {[%clk 0:01:31.3]}
46. Rb7+ {[%clk 0:00:36.9]} 46... Kc6 {[%clk 0:01:31.4]} 47. Ra7 {[%clk
0:00:34.7]} 47... Rxf2 {[%clk 0:01:31.4]} 48. Ng8 {[%clk 0:00:31.8]} 48... Bd8
{[%clk 0:01:26.5]} 49. Ra8 {[%clk 0:00:30.8]} 49... Bb6 {[%clk 0:01:26.3]} 50.
Rc8+ {[%clk 0:00:28.4]} 50... Kb7 {[%clk 0:01:26.3]} 51. Re8 {[%clk 0:00:26.4]}
51... Nxc3 {[%clk 0:01:25.9]} 52. Rxe6 {[%clk 0:00:24.6]} 52... Bxd4 {[%clk
0:01:26.5]} 53. Rxd6 {[%clk 0:00:24.2]} 53... Be5+ {[%clk 0:01:27.1]} 0-1

[Event "*** Titled Tuesday Blitz"]
[Site "Chess.com"]
[Date "2020.11.10"]
[Round "6"]
[White "Lupul_Cenusiu"]
[Black "eCztery"]
[Result "0-1"]
[WhiteElo "2546"]
[BlackElo "2315"]
[TimeControl "180+1"]
[EndTime "11:09:12 PST"]
[Termination "eCztery won by resignation"]

1. d4 {[%clk 0:03:00.9]} 1... Nf6 {[%clk 0:02:59.5]} 2. Nf3 {[%clk 0:03:01]}
2... e6 {[%clk 0:02:59.5]} 3. g3 {[%clk 0:03:00.9]} 3... c5 {[%clk 0:02:59.5]}
4. Bg2 {[%clk 0:03:01.4]} 4... cxd4 {[%clk 0:02:58.6]} 5. Nxd4 {[%clk
0:03:01.4]} 5... Be7 {[%clk 0:02:57.3]} 6. c4 {[%clk 0:03:00.5]} 6... O-O {[%clk
0:02:57]} 7. Nc3 {[%clk 0:02:59.1]} 7... Nc6 {[%clk 0:02:56.8]} 8. O-O {[%clk
0:02:58.8]} 8... a6 {[%clk 0:02:50.8]} 9. Bf4 {[%clk 0:02:52.5]} 9... Qa5 {[%clk
0:02:38.3]} 10. Rc1 {[%clk 0:02:39.7]} 10... Nxd4 {[%clk 0:02:15.8]} 11. Qxd4
{[%clk 0:02:38.3]} 11... Qh5 {[%clk 0:02:16.7]} 12. h4 {[%clk 0:02:26.2]} 12...
Ng4 {[%clk 0:02:01]} 13. Bd6 {[%clk 0:02:14.2]} 13... e5 {[%clk 0:01:06.3]} 14.
Qd5 {[%clk 0:01:58.1]} 14... Bxh4 {[%clk 0:00:48.8]} 15. gxh4 {[%clk 0:01:53.7]}
15... Re8 {[%clk 0:00:37.6]} 16. Qf3 {[%clk 0:01:49]} 16... Re6 {[%clk
0:00:34.1]} 17. Ne4 {[%clk 0:01:47]} 17... f5 {[%clk 0:00:32.4]} 18. Bh3 {[%clk
0:01:39.7]} 18... fxe4 {[%clk 0:00:29.5]} 19. Qxg4 {[%clk 0:01:34.6]} 19... Rg6
{[%clk 0:00:28.5]} 20. Qxg6 {[%clk 0:01:32.9]} 20... Qxg6+ {[%clk 0:00:29.4]}
21. Kh2 {[%clk 0:01:32.9]} 21... Qxd6 {[%clk 0:00:30]} 22. Rcd1 {[%clk
0:01:31.3]} 22... Qe7 {[%clk 0:00:30.1]} 23. c5 {[%clk 0:01:30.4]} 23... b6
{[%clk 0:00:27.7]} 24. Rd6 {[%clk 0:01:29.1]} 24... bxc5 {[%clk 0:00:26.8]} 25.
Rfd1 {[%clk 0:01:29.6]} 25... Qxh4 {[%clk 0:00:26]} 26. Kg2 {[%clk 0:01:28.2]}
26... e3 {[%clk 0:00:23.4]} 27. f3 {[%clk 0:01:21.9]} 27... Qf2+ {[%clk
0:00:22.6]} 28. Kh1 {[%clk 0:01:22]} 28... Qxe2 {[%clk 0:00:22]} 29. Bg2 {[%clk
0:01:18.6]} 29... Bb7 {[%clk 0:00:20.5]} 30. Rf1 {[%clk 0:01:17.6]} 30... Rf8
{[%clk 0:00:19.4]} 31. Rxd7 {[%clk 0:01:17.7]} 31... Bxf3 {[%clk 0:00:19.4]} 32.
Rg1 {[%clk 0:01:15.6]} 32... Bxg2+ {[%clk 0:00:19]} 33. Rxg2 {[%clk 0:01:15.9]}
33... Rf1+ {[%clk 0:00:17.8]} 34. Kh2 {[%clk 0:01:16.2]} 34... Rf2 {[%clk
0:00:17.1]} 35. Rxg7+ {[%clk 0:01:14.3]} 35... Kf8 {[%clk 0:00:16.7]} 36. Rg8+
{[%clk 0:01:14.6]} 36... Ke7 {[%clk 0:00:16.7]} 37. Rg7+ {[%clk 0:01:14.9]}
37... Ke6 {[%clk 0:00:17.1]} 38. Rg3 {[%clk 0:01:14.2]} 38... Rxg2+ {[%clk
0:00:16.7]} 39. Rxg2 {[%clk 0:01:14.6]} 39... Qf3 {[%clk 0:00:16.5]} 40. Rg8
{[%clk 0:01:13.3]} 40... e2 {[%clk 0:00:16.2]} 41. Re8+ {[%clk 0:01:13.3]} 41...
Kd7 {[%clk 0:00:16.4]} 42. Rxe5 {[%clk 0:01:11.3]} 42... e1=Q {[%clk 0:00:16.6]}
43. Rxe1 {[%clk 0:01:10.6]} 43... Qf2+ {[%clk 0:00:17.5]} 44. Kh3 {[%clk
0:01:10.6]} 44... Qxe1 {[%clk 0:00:18.4]} 45. b4 {[%clk 0:01:10.7]} 45... Qd2
{[%clk 0:00:19.3]} 46. bxc5 {[%clk 0:01:09.6]} 46... Kc6 {[%clk 0:00:20.2]} 47.
a4 {[%clk 0:01:09.1]} 47... Qa2 {[%clk 0:00:21.1]} 48. a5 {[%clk 0:01:09.8]}
48... Qxa5 {[%clk 0:00:21.5]} 49. Kg4 {[%clk 0:01:10.4]} 49... Qxc5 {[%clk
0:00:22.4]} 50. Kh4 {[%clk 0:01:10.7]} 50... Qb4+ {[%clk 0:00:23.3]} 0-1

[Event "*** Titled Tuesday Blitz"]
[Site "Chess.com"]
[Date "2020.11.10"]
[Round "6"]
[White "stolencandy13"]
[Black "GMKrikor"]
[Result "0-1"]
[WhiteElo "2379"]
[BlackElo "2782"]
[TimeControl "180+1"]
[EndTime "11:09:14 PST"]
[Termination "GMKrikor won by checkmate"]

1. d4 {[%clk 0:03:00.9]} 1... Nf6 {[%clk 0:02:59.6]} 2. Bf4 {[%clk 0:03:00.1]}
2... c5 {[%clk 0:02:59.1]} 3. e3 {[%clk 0:02:59.1]} 3... g6 {[%clk 0:02:54.3]}
4. Nf3 {[%clk 0:02:58.1]} 4... Bg7 {[%clk 0:02:50.3]} 5. c3 {[%clk 0:02:57.4]}
5... O-O {[%clk 0:02:49.2]} 6. Nbd2 {[%clk 0:02:54.9]} 6... d6 {[%clk 0:02:49]}
7. h3 {[%clk 0:02:52.3]} 7... cxd4 {[%clk 0:02:48.1]} 8. exd4 {[%clk 0:02:52.1]}
8... Nc6 {[%clk 0:02:48.5]} 9. Bd3 {[%clk 0:02:47.8]} 9... e5 {[%clk 0:02:48.6]}
10. Bg5 {[%clk 0:02:35.2]} 10... exd4 {[%clk 0:02:48.1]} 11. cxd4 {[%clk
0:02:30.7]} 11... Re8+ {[%clk 0:02:46.8]} 12. Kf1 {[%clk 0:02:24.6]} 12... h6
{[%clk 0:02:43.6]} 13. Bh4 {[%clk 0:02:22.3]} 13... g5 {[%clk 0:02:39.4]} 14.
Bg3 {[%clk 0:02:22.2]} 14... Nh5 {[%clk 0:02:39.5]} 15. Ne4 {[%clk 0:02:12.9]}
15... d5 {[%clk 0:02:32.5]} 16. Nc3 {[%clk 0:01:33]} 16... Nxg3+ {[%clk
0:02:23.6]} 17. fxg3 {[%clk 0:01:33.2]} 17... Be6 {[%clk 0:02:24.3]} 18. Bc2
{[%clk 0:01:28.7]} 18... Qf6 {[%clk 0:02:17.5]} 19. Nb5 {[%clk 0:01:20.6]} 19...
Rad8 {[%clk 0:01:49]} 20. Qd3 {[%clk 0:01:19.8]} 20... a6 {[%clk 0:01:27.7]} 21.
Nc7 {[%clk 0:01:18.6]} 21... Re7 {[%clk 0:01:27]} 22. Nxe6 {[%clk 0:01:18.2]}
22... Rxe6 {[%clk 0:01:19.3]} 23. Rd1 {[%clk 0:01:15.7]} 23... Rde8 {[%clk
0:01:16.7]} 24. Kg1 {[%clk 0:01:12.5]} 24... Re3 {[%clk 0:01:12.8]} 25. Qh7+
{[%clk 0:01:11.5]} 25... Kf8 {[%clk 0:01:12.8]} 26. Kh2 {[%clk 0:01:01.7]} 26...
Qxf3 {[%clk 0:00:15.9]} 27. gxf3 {[%clk 0:00:55.8]} 27... Re2+ {[%clk
0:00:15.1]} 28. Kg1 {[%clk 0:00:55.2]} 28... Bxd4+ {[%clk 0:00:15.6]} 29. Kf1
{[%clk 0:00:45.7]} 29... Rf2+ {[%clk 0:00:15.3]} 30. Kg1 {[%clk 0:00:43.5]}
30... Rxc2+ {[%clk 0:00:13.8]} 31. Kf1 {[%clk 0:00:38.2]} 31... Rf2+ {[%clk
0:00:13.2]} 32. Kg1 {[%clk 0:00:38.3]} 32... Rd2+ {[%clk 0:00:13.4]} 33. Kf1
{[%clk 0:00:32.5]} 33... Rxd1+ {[%clk 0:00:13.4]} 34. Kg2 {[%clk 0:00:32.9]}
34... Re2# {[%clk 0:00:13.4]} 0-1

[Event "*** Titled Tuesday Blitz"]
[Site "Chess.com"]
[Date "2020.11.10"]
[Round "6"]
[White "A-Fier"]
[Black "FontVella8"]
[Result "1-0"]
[WhiteElo "2758"]
[BlackElo "2515"]
[TimeControl "180+1"]
[EndTime "11:09:17 PST"]
[Termination "A-Fier won by resignation"]

1. b3 {[%clk 0:02:53.5]} 1... e5 {[%clk 0:02:59.7]} 2. Bb2 {[%clk 0:02:54.4]}
2... Nc6 {[%clk 0:03:00.3]} 3. e3 {[%clk 0:02:54.8]} 3... g6 {[%clk 0:03:00.5]}
4. Bb5 {[%clk 0:02:54.6]} 4... Bg7 {[%clk 0:03:00.7]} 5. Bxc6 {[%clk 0:02:55]}
5... dxc6 {[%clk 0:03:00.8]} 6. h4 {[%clk 0:02:55.5]} 6... h5 {[%clk 0:02:59.9]}
7. Nf3 {[%clk 0:02:55.4]} 7... Bg4 {[%clk 0:02:59.9]} 8. d3 {[%clk 0:02:51.8]}
8... Ne7 {[%clk 0:02:59.5]} 9. Nbd2 {[%clk 0:02:51.7]} 9... O-O {[%clk
0:02:59.3]} 10. a4 {[%clk 0:02:44.3]} 10... c5 {[%clk 0:02:59.4]} 11. a5 {[%clk
0:02:44.3]} 11... Nc6 {[%clk 0:02:58.9]} 12. Ra4 {[%clk 0:02:44.3]} 12... b5
{[%clk 0:02:49.3]} 13. Rxg4 {[%clk 0:02:44.4]} 13... hxg4 {[%clk 0:02:48.6]} 14.
Ng5 {[%clk 0:02:45.3]} 14... f5 {[%clk 0:02:24]} 15. Ne6 {[%clk 0:02:45.1]}
15... Qe7 {[%clk 0:02:23.8]} 16. Nxf8 {[%clk 0:02:45.2]} 16... Rxf8 {[%clk
0:02:23.7]} 17. h5 {[%clk 0:02:46.1]} 17... gxh5 {[%clk 0:02:19.4]} 18. Rxh5
{[%clk 0:02:46.2]} 18... Nxa5 {[%clk 0:02:17.9]} 19. Qa1 {[%clk 0:02:44.8]}
19... Nc6 {[%clk 0:02:15.7]} 20. Qa6 {[%clk 0:02:44.8]} 20... Nb4 {[%clk
0:01:49.5]} 21. Qg6 {[%clk 0:02:44.6]} 21... Rf6 {[%clk 0:01:38.1]} 22. Qh7+
{[%clk 0:02:43.2]} 22... Kf8 {[%clk 0:01:37.6]} 23. Rg5 {[%clk 0:02:33.5]} 23...
Rf7 {[%clk 0:01:14.1]} 24. Rxf5 {[%clk 0:02:29.5]} 24... Nxc2+ {[%clk
0:01:12.7]} 25. Kd1 {[%clk 0:02:29.3]} 25... Nb4 {[%clk 0:01:12.9]} 26. Bc3
{[%clk 0:02:04.7]} 26... Bf6 {[%clk 0:00:53.3]} 27. Qh6+ {[%clk 0:02:03.9]}
27... Bg7 {[%clk 0:00:53.5]} 28. Qh5 {[%clk 0:02:03.9]} 28... Nxd3 {[%clk
0:00:48.8]} 29. Ne4 {[%clk 0:02:03.1]} 29... Qd7 {[%clk 0:00:16.8]} 30. Rxf7+
{[%clk 0:02:01]} 30... Qxf7 {[%clk 0:00:17.7]} 31. Qxg4 {[%clk 0:01:54.4]} 31...
Qxb3+ {[%clk 0:00:17.1]} 32. Ke2 {[%clk 0:01:50.5]} 32... Nc1+ {[%clk
0:00:13.9]} 33. Kf1 {[%clk 0:01:46.6]} 33... Qc4+ {[%clk 0:00:09.3]} 34. Kg1
{[%clk 0:01:46.6]} 34... Ne2+ {[%clk 0:00:09.4]} 35. Kh2 {[%clk 0:01:47.1]}
35... Nxc3 {[%clk 0:00:09.8]} 36. Qc8+ {[%clk 0:01:45.9]} 36... Kf7 {[%clk
0:00:08.8]} 37. Qxc7+ {[%clk 0:01:46.4]} 37... Kg6 {[%clk 0:00:08.4]} 38. Qd6+
{[%clk 0:01:45]} 38... Kh7 {[%clk 0:00:04.2]} 39. Ng5+ {[%clk 0:01:45.2]} 39...
Kg8 {[%clk 0:00:03]} 40. Qd8+ {[%clk 0:01:42.6]} 40... Bf8 {[%clk 0:00:03.2]}
41. Qf6 {[%clk 0:01:41.8]} 41... Qd5 {[%clk 0:00:02.5]} 42. Qg6+ {[%clk
0:01:41.4]} 42... Bg7 {[%clk 0:00:02.7]} 43. Qe8+ {[%clk 0:01:40.9]} 43... Bf8
{[%clk 0:00:02.7]} 44. Ne6 {[%clk 0:01:41.5]} 44... Qd6 {[%clk 0:00:02.4]} 45.
Qg6+ {[%clk 0:01:41.5]} 45... Kh8 {[%clk 0:00:02.1]} 46. Qf7 {[%clk 0:01:37.7]}
46... e4+ {[%clk 0:00:02.2]} 47. g3 {[%clk 0:01:36.5]} 47... b4 {[%clk
0:00:02.5]} 48. Nxf8 {[%clk 0:01:36.4]} 48... Qh6+ {[%clk 0:00:02.7]} 49. Kg2
{[%clk 0:01:36.8]} 49... Qg7 {[%clk 0:00:02]} 50. Qe8 {[%clk 0:01:35.6]} 50...
Qg8 {[%clk 0:00:01.7]} 51. Qh5+ {[%clk 0:01:35.3]} 51... Kg7 {[%clk 0:00:02.3]}
52. Nd7 {[%clk 0:01:35.3]} 52... Qf7 {[%clk 0:00:02.4]} 53. Qe5+ {[%clk
0:01:34.5]} 53... Kg6 {[%clk 0:00:01.7]} 54. Qd6+ {[%clk 0:01:33.8]} 54... Kg7
{[%clk 0:00:01.9]} 55. Ne5 {[%clk 0:01:34.2]} 55... Qf3+ {[%clk 0:00:02.4]} 56.
Nxf3 {[%clk 0:01:34]} 1-0

[Event "*** Titled Tuesday Blitz"]
[Site "Chess.com"]
[Date "2020.11.10"]
[Round "6"]
[White "Kopytkin"]
[Black "Borsuk_Konstantin"]
[Result "0-1"]
[WhiteElo "2449"]
[BlackElo "2616"]
[TimeControl "180+1"]
[EndTime "11:09:17 PST"]
[Termination "Borsuk_Konstantin won on time"]

1. e4 {[%clk 0:03:00.9]} 1... e6 {[%clk 0:02:59.6]} 2. d4 {[%clk 0:03:00.5]}
2... d5 {[%clk 0:03:00.3]} 3. e5 {[%clk 0:03:01]} 3... c5 {[%clk 0:03:00.2]} 4.
c3 {[%clk 0:03:01.5]} 4... Nc6 {[%clk 0:03:00.9]} 5. Nf3 {[%clk 0:03:00.4]} 5...
Qb6 {[%clk 0:03:01.3]} 6. a3 {[%clk 0:03:00.8]} 6... c4 {[%clk 0:03:01]} 7. Nbd2
{[%clk 0:02:50.9]} 7... Na5 {[%clk 0:03:00.8]} 8. Be2 {[%clk 0:02:41.6]} 8...
Bd7 {[%clk 0:03:00.4]} 9. O-O {[%clk 0:02:41.6]} 9... O-O-O {[%clk 0:02:59.7]}
10. Rb1 {[%clk 0:02:39.4]} 10... h6 {[%clk 0:02:58.1]} 11. Ne1 {[%clk
0:02:31.2]} 11... Ne7 {[%clk 0:02:55.1]} 12. b3 {[%clk 0:01:43.4]} 12... cxb3
{[%clk 0:02:53.6]} 13. Nd3 {[%clk 0:01:43.4]} 13... Ng6 {[%clk 0:02:31.6]} 14.
g3 {[%clk 0:01:25.5]} 14... Kb8 {[%clk 0:02:23.7]} 15. Nb4 {[%clk 0:01:25.5]}
15... Ba4 {[%clk 0:02:21.9]} 16. Bb2 {[%clk 0:01:22.5]} 16... Rc8 {[%clk
0:02:16.3]} 17. Kg2 {[%clk 0:01:21.4]} 17... Ne7 {[%clk 0:02:15]} 18. Bd3 {[%clk
0:01:18]} 18... Nc4 {[%clk 0:02:09.6]} 19. Nxb3 {[%clk 0:00:45.7]} 19... a5
{[%clk 0:02:08.8]} 20. Bc1 {[%clk 0:00:40.2]} 20... axb4 {[%clk 0:02:05.6]} 21.
axb4 {[%clk 0:00:40.2]} 21... Rc7 {[%clk 0:01:43.2]} 22. Qe2 {[%clk 0:00:38.7]}
22... Bxb3 {[%clk 0:01:42.9]} 23. Rxb3 {[%clk 0:00:38.5]} 23... Qb5 {[%clk
0:01:41.4]} 24. h4 {[%clk 0:00:28]} 24... Nc8 {[%clk 0:01:41.4]} 25. h5 {[%clk
0:00:22.7]} 25... N8b6 {[%clk 0:01:39.8]} 26. Bf4 {[%clk 0:00:23.2]} 26... Rc8
{[%clk 0:01:37]} 27. Ra1 {[%clk 0:00:23]} 27... Be7 {[%clk 0:01:35.4]} 28. Ra5
{[%clk 0:00:22.2]} 28... Qc6 {[%clk 0:01:28.1]} 29. Ra2 {[%clk 0:00:19.3]} 29...
Kc7 {[%clk 0:01:27.2]} 30. Rb1 {[%clk 0:00:15.1]} 30... Ra8 {[%clk 0:01:25.7]}
31. Rc2 {[%clk 0:00:15.3]} 31... Rhc8 {[%clk 0:01:22.6]} 32. Rf1 {[%clk
0:00:11.1]} 32... Ra3 {[%clk 0:01:21.1]} 33. Rcc1 {[%clk 0:00:08.1]} 33... Rca8
{[%clk 0:01:20.3]} 34. g4 {[%clk 0:00:08.3]} 34... Ra2 {[%clk 0:01:12.9]} 35.
Rc2 {[%clk 0:00:07.6]} 35... Rxc2 {[%clk 0:01:12]} 36. Qxc2 {[%clk 0:00:06.7]}
36... Qa4 {[%clk 0:01:10.4]} 37. Qe2 {[%clk 0:00:03]} 37... Qa2 {[%clk
0:01:07.6]} 38. Qf3 {[%clk 0:00:01.6]} 38... Rf8 {[%clk 0:01:02.5]} 39. Bg3
{[%clk 0:00:01.2]} 39... Qb2 {[%clk 0:00:59.1]} 0-1

[Event "*** Titled Tuesday Blitz"]
[Site "Chess.com"]
[Date "2020.11.10"]
[Round "6"]
[White "1977Ivan"]
[Black "yobdc"]
[Result "0-1"]
[WhiteElo "2694"]
[BlackElo "2448"]
[TimeControl "180+1"]
[EndTime "11:09:22 PST"]
[Termination "yobdc won on time"]

1. c4 {[%clk 0:03:00.9]} 1... e6 {[%clk 0:02:59.8]} 2. e4 {[%clk 0:02:57.6]}
2... d5 {[%clk 0:02:59.3]} 3. exd5 {[%clk 0:02:57.3]} 3... exd5 {[%clk
0:02:59.6]} 4. cxd5 {[%clk 0:02:58.2]} 4... Nf6 {[%clk 0:02:59.9]} 5. Bb5+
{[%clk 0:02:56.6]} 5... Nbd7 {[%clk 0:02:58.5]} 6. Nc3 {[%clk 0:02:54.2]} 6...
Be7 {[%clk 0:02:58.7]} 7. Nf3 {[%clk 0:02:52.3]} 7... O-O {[%clk 0:02:58.9]} 8.
O-O {[%clk 0:02:51.9]} 8... a6 {[%clk 0:02:58.4]} 9. Ba4 {[%clk 0:02:46.8]} 9...
b5 {[%clk 0:02:58.4]} 10. Bb3 {[%clk 0:02:46.7]} 10... Nb6 {[%clk 0:02:58.6]}
11. d4 {[%clk 0:02:46.2]} 11... Bb7 {[%clk 0:02:54.9]} 12. Ne5 {[%clk
0:02:45.7]} 12... Nbxd5 {[%clk 0:02:54]} 13. Re1 {[%clk 0:02:42.4]} 13... c5
{[%clk 0:02:28.2]} 14. Nxd5 {[%clk 0:02:23.7]} 14... Bxd5 {[%clk 0:02:19.4]} 15.
dxc5 {[%clk 0:02:20.8]} 15... Bxc5 {[%clk 0:02:12.3]} 16. Be3 {[%clk 0:01:58.7]}
16... Bb4 {[%clk 0:02:00.3]} 17. Re2 {[%clk 0:01:29.9]} 17... Qd6 {[%clk
0:01:47.7]} 18. Bg5 {[%clk 0:01:21.4]} 18... Bxb3 {[%clk 0:01:16.4]} 19. Qxb3
{[%clk 0:01:18]} 19... Rae8 {[%clk 0:00:51.5]} 20. Bxf6 {[%clk 0:01:08.3]} 20...
Qxf6 {[%clk 0:00:46.7]} 21. Ng4 {[%clk 0:00:15.6]} 21... Qd6 {[%clk 0:00:45.2]}
22. Rxe8 {[%clk 0:00:14.2]} 22... Rxe8 {[%clk 0:00:46.1]} 23. g3 {[%clk
0:00:12.2]} 23... h5 {[%clk 0:00:45.2]} 24. Rd1 {[%clk 0:00:11.3]} 24... Qe7
{[%clk 0:00:39.8]} 25. Ne3 {[%clk 0:00:10.8]} 25... Bc5 {[%clk 0:00:39.8]} 26.
Re1 {[%clk 0:00:07.5]} 26... Qg5 {[%clk 0:00:36.1]} 27. Ng2 {[%clk 0:00:02.1]}
27... Rd8 {[%clk 0:00:31.7]} 28. Nf4 {[%clk 0:00:01.1]} 28... h4 {[%clk
0:00:26.6]} 0-1